Cogmind - Beta 16 @@@ ROGUE MODE // 2025.10.28 @ 12:36:47 Player: taku_the_hopeless Result: Destroyed by H-66 Slayer with Gauss Rifle Performance ------------- Evolutions (5) 2500 Regions Visited (16) 3200 Robots Destroyed (316) 1580 Value Destroyed (10550) 10550 Prototype IDs (19) 380 Alien Tech Used (0) 0 Bonus (5339) 5339 TOTAL SCORE: 23549 Bonus ------- Triggered High Security 500 High Alert Combat Kills 3835 Follower Combat Kills 246 Met Data Miner 300 Met Imprinter 300 Was Imprinted 300 Friendly Fire -142 Cogmind --------- Core Integrity 0/1000 Matter 15/300 Energy 98/100 System Corruption 15% Temperature Cool (0) Movement Core (50) Location -5/Factory Parts ------- > --- POWER (1) -------- (None) > --- PROPULSION (3) --- (None) > --- UTILITY (9) ------ (None) > --- WEAPON (4) ------- (None) > --- INVENTORY (5) ---- 0b10 Decoder Chip [Looter] Hardlight Generator Long-range Missile Launcher Micro-nuke Launcher CR-A16's Pointy Stick Peak State ------------ > --- POWER ------------ Neutrino Core > --- PROPULSION ------- Compact Wheel Compact Wheel Compact Wheel > --- UTILITY ---------- Cargo Storage Unit Advanced Signal Interpreter Experimental Targeting Computer Launcher Loader Advanced Shield Generator Advanced Hacking Suite Long-range Tractor Beam > --- WEAPON ----------- Heavy Beamcaster Heavy Beamcaster Micro-nuke Launcher CR-A16's Pointy Stick > --- INVENTORY -------- Fission Core Compact Wheel Improved Cryofiber Web Advanced Heat Sink Advanced Heat Sink Improved Coolant Injector Advanced Sensor Array 0b10 Decoder Chip [Looter] Launcher Loader Makeshift ECM Suite Hardened Medium Armor Plating Layered Light Armor Plating Medium Reflective Plating Hardlight Generator Advanced Shield Generator Force Field Authchip [Weapon] Mobile Refinery Mk. CCLXVII Hacking Drone Bay Heavy Beamcaster Heavy Beamcaster Cooled Plasma Rifle Cooled Plasma Rifle Cooled Plasma Rifle Heavy Phase Cannon Long-range Missile Launcher Tiamat Missile Launcher Tiamat Missile Launcher [Rating: 88] Favorites ----------- Power Reinforced Deuterium Engine Engine Reinforced Deuterium Engine Power Core Nuclear Core Reactor Antimatter Reactor Propulsion Armored Wheel Treads Medium Treads Wheel Armored Wheel Utility Hacking Suite Device Advanced Sensor Array Storage Cargo Storage Unit Processor Improved Signal Interpreter Hackware Hacking Suite Protection Hardened Medium Armor Plating Weapon Enhanced Gauss Cannon Energy Gun Heavy Beamcaster Energy Cannon Phase Cannon Ballistic Gun Heavy Battle Rifle Ballistic Cannon Enhanced Gauss Cannon Launcher Micro-nuke Launcher Impact Weapon Shock Maul Slashing Weapon Greatsword Piercing Weapon CR-A16's Pointy Stick Build | -11 -10 -9 -8 -7 -7 -7 -7 -7 -7 -6 -6 -6 -6 -6 -5 -5 ------- Run | Yrd Mat Mat Mat Fac Was Fac Low Low Dat Pro Fac Low Low Zio Pro Fac Slots Evolved 10 | . . 2 2 2 . . . . . . 2 . . . . 2 Power . | . . . . . . . . . . . . . . . . . Propulsion 1 | . . . 1 . . . . . . . . . . . . . Utility 7 | . . 1 . 2 . . . . . . 2 . . . . 2 Weapon 2 | . . 1 1 . . . . . . . . . . . . . Parts Attached 174 | 8 1 15 22 4 14 7 9 5 . 5 31 2 6 4 6 35 Power 18 | 1 . 2 . . 1 1 . 1 . . 4 . 3 . 1 4 Engine 11 | 1 . 1 . . . . . . . . 4 . 2 . 1 2 Core 6 | . . 1 . . 1 1 . . . . . . 1 . . 2 Reactor 1 | . . . . . . . . 1 . . . . . . . . Propulsion 36 | 2 . 3 7 1 . . 1 1 . 1 4 2 . 1 3 10 Treads 5 | . . . . . . . . . . . . 2 . . 3 . Leg . | . . . . . . . . . . . . . . . . . Wheel 31 | 2 . 3 7 1 . . 1 1 . 1 4 . . 1 . 10 Hover . | . . . . . . . . . . . . . . . . . Flight . | . . . . . . . . . . . . . . . . . Utility 54 | 3 1 2 5 3 2 4 3 1 . 1 11 . . 2 2 14 Device 29 | 2 . 1 2 1 2 2 3 . . 1 5 . . 2 . 8 Storage 5 | 1 1 . . . . 1 . . . . 1 . . . . 1 Processor 7 | . . 1 . 1 . . . . . . 1 . . . 1 3 Hackware 4 | . . . . 1 . . . . . . 2 . . . . 1 Protection 9 | . . . 3 . . 1 . 1 . . 2 . . . 1 1 Artifact . | . . . . . . . . . . . . . . . . . Weapon 66 | 2 . 8 10 . 11 2 5 2 . 3 12 . 3 1 . 7 Energy Gun 17 | . . . . . 7 . . . . 1 6 . . . . 3 Energy Cannon 4 | . . . . . . 1 . . . 1 1 . . . . 1 Ballistic Gun 25 | 2 . 7 8 . 3 1 3 . . 1 . . . . . . Ballistic Cannon 6 | . . . . . . . 2 . . . . . 3 . . 1 Launcher 8 | . . 1 2 . . . . 1 . . 2 . . . . 2 Special Weapon . | . . . . . . . . . . . . . . . . . Impact Weapon 1 | . . . . . . . . . . . 1 . . . . . Slashing Weapon 2 | . . . . . . . . 1 . . 1 . . . . . Piercing Weapon 3 | . . . . . 1 . . . . . 1 . . 1 . . Special Melee Weapon . | . . . . . . . . . . . . . . . . . Unidentified Prototypes 8 | . . 1 . . 1 . . . . . 1 . . 2 . 3 Parts Lost 54 | . . . 3 . . 2 1 7 . 6 11 . . . . 24 Power 7 | . . . . . . 1 . 2 . . 1 . . . . 3 Propulsion 12 | . . . 1 . . . . 2 . 1 3 . . . . 5 Utility 23 | . . . 2 . . 1 1 2 . 2 4 . . . . 11 Weapon 12 | . . . . . . . . 1 . 3 3 . . . . 5 Highest Loss Streak 14 | . . . 1 . . 2 1 3 . 3 3 . . . . 14 To Critical Strikes . | . . . . . . . . . . . . . . . . . Average Backups 26 | 3 10 24 24 24 25 24 24 23 25 24 27 28 27 28 29 28 Power . | . 1 1 2 2 2 1 1 . . . . 1 1 1 1 . Propulsion 1 | 2 5 9 3 2 2 2 1 1 . . . . 1 1 1 . Utility 16 | . 1 2 9 13 15 15 15 13 14 13 18 19 19 20 21 19 Weapon 7 | 1 2 10 9 6 6 6 6 8 11 11 8 7 6 6 6 7 Tool/Special . | . . . . . . . . . . . . . . . . . Unused Backups 49 | . 3 7 9 2 2 1 . 1 . . 7 2 1 2 . 12 Power 4 | . 3 1 . . . . . . . . . . . . . . Propulsion 5 | . . 3 2 . . . . . . . . . . . . . Utility 31 | . . 1 4 1 2 1 . . . . 5 2 1 2 . 12 Weapon 9 | . . 2 3 1 . . . 1 . . 2 . . . . . Tool/Special . | . . . . . . . . . . . . . . . . . Average Slot Usage (%) 91 | . 100 99 97 98 98 99 99 93 72 56 87 78 90 91 93 88 Engine 4 | . 14 7 . . . . . . . . 5 6 5 6 6 3 Core 2 | . . 3 9 7 7 6 7 . . . . . . . . 1 Treads 1 | . . . . . . . . . . . . 5 6 6 6 . Wheel 17 | . 28 22 25 23 23 23 22 18 23 20 19 12 13 13 12 14 Device 11 | . 14 21 6 7 7 3 6 7 7 5 10 13 13 13 13 13 Storage 6 | . 14 11 9 7 7 7 7 7 7 7 6 6 6 6 6 5 Processor 8 | . . . 9 14 15 15 15 7 7 7 9 6 6 6 6 12 Hackware 5 | . . . . 6 7 7 7 7 7 7 9 6 6 6 6 4 Protection 3 | . . . 2 . . 3 . 6 7 1 2 6 6 5 6 4 Energy Gun 3 | . . . . . 8 7 1 . . . 6 6 4 . 3 5 Energy Cannon 1 | . . . . . . . 1 . . . 6 . . . . 2 Ballistic Gun 9 | . 28 32 35 30 20 22 23 9 1 . 1 . . . . . Ballistic Cannon 6 | . . . . . . . 3 14 1 3 . . 12 18 17 6 Piercing Weapon 2 | . . . . . . . . . . . 1 6 6 6 5 4 Peak Build Rating 88 | 7 11 24 38 45 53 49 50 53 45 46 61 57 66 66 76 88 Average Rating 52 | 5 7 17 32 41 44 47 47 48 32 26 54 52 62 61 65 77 On Entrance 40 | . 7 11 24 35 42 46 48 50 45 45 33 48 53 62 64 67 Avg Prop Armor Cover (%) 6 | . . . . . . . . . . . . 8 6 5 6 6 Naked Turns 27 | . . . . . . . . . . . . . . . . 27 Heaviest Build 212 | 13 88 98 107 107 108 115 115 132 112 112 185 171 189 189 189 212 Greatest Support 78 | 32 32 32 48 36 36 36 36 36 36 36 38 26 26 28 78 48 Greatest Overweight (x) 16 | . 2 3 3 2 2 3 4 10 3 4 7 10 7 7 15 16 Average Overweight (x) 4 | . . 2 2 2 2 2 2 4 2 2 3 6 6 6 6 4 Largest Inventory Capacity 30 | 8 25 25 25 25 25 25 25 25 25 25 30 30 30 30 30 30 Average Capacity 27 | 7 13 25 25 25 25 25 25 25 25 25 29 30 30 30 30 29 Most Carried 30 | 8 25 25 25 25 25 25 25 25 25 25 30 30 30 30 30 30 Average Carried 26 | 4 10 24 24 24 24 24 24 23 25 24 28 29 29 29 30 29 Final Capacity 30 | 8 25 25 25 25 25 25 25 25 25 25 30 30 30 30 30 5 Final Carried 30 | 8 25 25 25 25 25 25 25 25 25 25 30 30 30 30 30 5 Class Distribution -------------------- 29% | Hauler-Skirmisher 20% | Gunner 13% | Hauler-Mutant 7% | Derelict-Gunner 7% | Hauler-Tank 7% | Hauler-Gunner 7% | Mutant Dominant Class ---------------- Mutant | -10/Materials Gunner | -9/Materials Gunner | -8/Materials Gunner | -7/Factory Gunner | -7/Waste Derelict-Gunner | -7/Factory Gunner | -7/Lower Caves Gunner | -7/Lower Caves Mutant | -7/Data Miner Mutant | -6/Proximity Caves Hauler-Mutant | -6/Factory Hauler-Mutant | -6/Lower Caves Hauler-Skirmisher | -6/Lower Caves Hauler-Skirmisher | -6/Zion Hauler-Skirmisher | -5/Proximity Caves Hauler-Gunner | -5/Factory Resources | -11 -10 -9 -8 -7 -7 -7 -7 -7 -7 -6 -6 -6 -6 -6 -5 -5 ----------- Run | Yrd Mat Mat Mat Fac Was Fac Low Low Dat Pro Fac Low Low Zio Pro Fac Matter Collected 9175 | 330 140 714 1650 50 404 151 365 486 . 321 1320 47 121 104 208 2764 Remotely 1196 | 110 . 714 . . . . . . . . . . . . . 372 Salvage Created 12677 | 119 176 1128 2370 50 1020 243 124 443 . 100 1826 342 301 . 167 4268 Parts 547 | 12 10 50 132 2 3 12 5 18 . 8 92 8 12 . 6 177 Haulers Intercepted 16 | . 1 3 6 . . 1 . . . . 2 . . . . 3 Recyclers Shooed 13 | . . 6 2 . . . . . . . 3 . . . . 2 Parts Field Recycled . | . . . . . . . . . . . . . . . . . Retrieved Matter . | . . . . . . . . . . . . . . . . . Parts Self-Destructed 43 | . . . . . . . 4 9 . 8 . . 10 4 8 . Prevented 15 | . . . . . . . 3 . . . . . 1 . 11 . Parts Restored . | . . . . . . . . . . . . . . . . . Kills | -11 -10 -9 -8 -7 -7 -7 -7 -7 -7 -6 -6 -6 -6 -6 -5 -5 ------- Run | Yrd Mat Mat Mat Fac Was Fac Low Low Dat Pro Fac Low Low Zio Pro Fac Combat Hostiles Destroyed 193 | . . 16 36 1 1 5 2 13 . 3 28 . . . 2 86 Melee 4 | . . . . . . . . . . . 3 . . . . 1 Guns 67 | . . 13 33 1 1 5 1 1 . . 6 . . . . 6 Cannons 38 | . . . . . . . 1 8 . 3 4 . . . 1 21 AOE 81 | . . 3 3 . . . . 4 . . 15 . . . . 56 Classes Destroyed 22 | 2 2 5 4 . 1 1 1 3 . . 1 . 1 . . 1 Worker 35 | . 4 . 12 . . . . . . . 5 . . . . 14 Builder 23 | . . . 3 . . . . . . . 8 . . . . 12 Tunneler 4 | 3 1 . . . . . . . . . . . . . . . Hauler 16 | . 1 3 6 . . 1 . . . . 2 . . . . 3 Recycler 23 | 1 . 5 7 . . . . . . . 4 . . . . 6 Minesweeper 1 | . . . . . . . . . . . . . 1 . . . Mechanic 6 | . . . . . . . . . . . 1 . . . . 5 Operator 3 | . . 1 1 . . . . . . . . . . . . 1 Watcher 11 | . . 3 3 . . . . . . . 1 . . . . 4 Swarmer 32 | . . 7 11 . . 1 . . . 1 7 . . . . 5 Saboteur 2 | . . . . . . . . . . . . . . . . 2 Grunt 84 | . . 7 13 . . 1 . 3 . . 11 . . . . 49 Brawler 7 | . . . . . . . . 1 . . 2 . . . . 4 Duelist 10 | . . . 1 . . 1 . . . . . . . . . 8 Sentry 18 | . . 2 8 1 . 1 1 . . 1 1 . . . . 3 Specialist 2 | . . . 2 . . . . . . . . . . . . . Hunter 13 | . . . 1 . . . . . . . 4 . . . 1 7 Programmer 15 | . . . . . . 1 . 2 . 1 3 . . . . 8 Behemoth 2 | . . . . . . . 1 . . . . . . . 1 . Compactor 1 | . . . . . 1 . . . . . . . . . . . Decomposer 2 | . . . . . . . . . . . . . 2 . . . Packrat 3 | . . . . . . . . . . . . 3 . . . . Samaritan 5 | . . . . . . . . 1 . . . 3 1 . . . Thug 2 | . . . . . . . . 2 . . . . . . . . Butcher 4 | . . . . . . . . 4 . . . . . . . . Mutant 2 | . . . . . . . . 1 . . . . . . . 1 Best Kill Streak 22 | 2 2 4 8 1 1 2 1 4 . 3 9 . 1 . 1 22 Combat Bots Only 19 | . . 3 5 1 1 2 1 4 . 3 6 . . . 1 19 Max Kills in Single Turn 8 | 1 1 3 3 1 1 1 1 3 . 1 5 1 1 . 1 8 Gunslinging 1 | . . . 1 . . . . . . . . . . . . . Exploded 3 | . . 3 2 . . . . 3 . . 2 . . . . 3 Melee 1 | . . . . . . . . . . . 1 . . . . 1 Uniques/NPCs Destroyed . | . . . . . . . . . . . . . . . . . Combat | -11 -10 -9 -8 -7 -7 -7 -7 -7 -7 -6 -6 -6 -6 -6 -5 -5 -------- Run | Yrd Mat Mat Mat Fac Was Fac Low Low Dat Pro Fac Low Low Zio Pro Fac Hostile Shots Fired 857 | . 2 47 123 9 . 23 60 56 . 39 149 . . . 3 346 Missed 238 | . . 19 28 4 . 6 18 14 . 9 39 . . . . 101 Hits 619 | . 2 28 95 5 . 17 42 42 . 30 110 . . . 3 245 Melee 22 | . . . . . . 3 . 3 . 1 . . . . . 15 Projectile 597 | . 2 28 95 5 . 14 42 39 . 29 110 . . . 3 230 Critical Strikes 25 | . . . 4 . . 1 1 . . 2 5 . . . . 12 Part Disruptions 2 | . . . 1 . . . . . . . . . . . . 1 Damage Taken 10146 | . 26 333 1262 34 . 328 681 635 . 597 1481 . . . 126 4643 Core 1589 | . . 45 174 6 . 40 56 25 . 76 152 . . . . 1015 Absorbed by Shields 1296 | . . . 97 . . . 79 174 . . 408 . . . . 538 Ignored by Resistances 46 | . . . . . . . . . . . 40 . . . . 6 Regen/Repaired (Parts) 290 | . . . 79 . . . . . . . 135 . . . . 76 Core Remaining (%) 84 | 100 100 88 68 . . . . . . 71 . . . . 82 . Volleys Fired 470 | 10 20 65 92 1 31 17 16 30 . 8 52 . 1 . 5 122 Largest 4 | 2 2 3 4 4 4 4 4 4 . 3 4 . 1 . 4 4 Hottest 324 | 40 40 69 112 112 270 180 227 154 . 138 255 . 33 . 324 243 Shots Fired 1247 | 20 40 180 349 4 96 52 39 83 . 14 86 . 2 . 18 264 Gun 936 | 20 40 178 345 4 96 52 37 39 . 1 33 . 1 . 12 78 Cannon 232 | . . . . . . . 2 38 . 13 35 . 1 . 6 137 Launcher 79 | . . 2 4 . . . . 6 . . 18 . . . . 49 Special . | . . . . . . . . . . . . . . . . . Kinetic 912 | 20 40 178 345 4 48 45 36 77 . 13 . . 1 . 6 99 Thermal 238 | . . . . . 48 7 3 . . . 51 . 1 . 12 116 Explosive 79 | . . 2 4 . . . . 6 . . 18 . . . . 49 Electromagnetic 18 | . . . . . . . . . . 1 17 . . . . . Robot Hit Streak 37 | 5 4 10 18 10 37 14 23 7 . 8 15 . . . 10 16 Robot Miss Streak 17 | 2 5 6 17 1 2 3 1 8 . 4 2 . . . 1 6 Penetration Max 1 | . . . . . . . . . . . . . . . . 1 Secondary Targets 7 | . . 2 5 . . . . . . . . . . . . . Max Gunslinging Chain 1 | . . 1 1 . . . . . . . . . . . . . Shots Hit Robots 882 | 12 19 111 231 4 86 36 31 61 . 13 75 7 9 . 12 175 Core Hits 669 | 5 9 46 179 8 11 11 8 51 . 18 86 5 6 . 3 223 Critical Kills . | . . . . . . . . . . . . . . . . . Critical Parts Destroyed 3 | . . . 2 . . 1 . . . . . . . . . . Critical Strikes 37 | . . . 2 . 2 1 . . . . 6 1 . . 2 23 Burn 16 | . . . . . 2 . . . . . 3 . . . 2 9 Destroy 3 | . . . 2 . . 1 . . . . . . . . . . Blast 14 | . . . . . . . . . . . . . . . . 14 Sever 1 | . . . . . . . . . . . 1 . . . . . Impale 3 | . . . . . . . . . . . 2 1 . . . . Melee Attacks 118 | . . . . . . . . . . . 40 8 10 1 9 50 Impact . | . . . . . . . . . . . . . . . . . Slashing 22 | . . . . . . . . . . . 22 . . . . . Piercing 96 | . . . . . . . . . . . 18 8 10 1 9 50 Sneak Attacks 46 | . . . . . . . . . . . 11 7 5 . 1 22 Combat Hostiles 1 | . . . . . . . . . . . 1 . . . . . Follow-up Attacks . | . . . . . . . . . . . . . . . . . Damage Inflicted 36921 | 149 230 1781 3775 116 1773 823 677 1896 . 370 6078 421 495 . 335 18002 Guns 11163 | 149 230 1499 3432 116 1773 823 621 626 . . 378 . . . 199 1317 Cannons 4189 | . . . . . . . 56 676 . 370 592 . . . 71 2424 Explosions 17722 | . . 282 338 . . . . 594 . . 3841 . . . . 12667 Melee 3802 | . . . . . . . . . . . 1227 421 495 . 65 1594 Ramming 45 | . . . 5 . . . . . . . 40 . . . . . Kinetic 11327 | 149 230 1499 3432 116 974 684 596 1302 . 370 . . . . 71 1904 Thermal 4720 | . . . . . 799 139 81 . . . 759 . . . 199 2743 Explosive 16624 | . . 282 303 . . . . 594 . . 3684 . . . . 11761 Electromagnetic 403 | . . . 35 . . . . . . . 368 . . . . . Impact . | . . . . . . . . . . . . . . . . . Slashing 785 | . . . . . . . . . . . 785 . . . . . Piercing 3017 | . . . . . . . . . . . 442 421 495 . 65 1594 Highest Corruption 15 | . . 1 . . . 3 3 4 4 8 4 4 4 4 . 15 Average Corruption 3 | . . 1 . . . 2 2 3 4 7 3 4 4 4 . 4 Corruption Purged 3 | . . . . . . . 3 . . . . . . . . . Corruption Blocked . | . . . . . . . . . . . . . . . . . Effects 155 | . . 4 . . . 1 12 18 2 16 14 16 15 2 . 55 Message Errors 30 | . . . . . . 1 2 5 1 2 2 3 3 . . 11 Matter Fused 34 | . . 3 . . . . 3 3 1 2 2 2 2 2 . 14 Heat Flow Errors 16 | . . 1 . . . . 1 1 . 4 2 2 1 . . 4 Energy Discharges 21 | . . . . . . . 1 4 . 3 . 3 4 . . 6 Parts Rejected 2 | . . . . . . . . . . 1 . . . . . 1 Parts Fused 3 | . . . . . . . . 1 . . . 1 . . . 1 Data Loss (minor) 27 | . . . . . . . 1 3 . 4 5 3 4 . . 7 Data Loss (major) 5 | . . . . . . . 1 . . . . 1 . . . 3 Misfires 8 | . . . . . . . 1 . . . 1 . 1 . . 5 Alerts 6 | . . . . . . . 2 . . . 2 1 . . . 1 Weapon Failures 3 | . . . . . . . . 1 . . . . . . . 2 Overload Shots 1 | . . . . . . . . . . . . . . . . 1 Overflow Damage 1629 | . . 41 97 . . . . . . . 550 65 84 . 25 767 Projectiles 21 | . . . . . . . . . . . . . . . . 21 Explosions 849 | . . 41 97 . . . . . . . 215 . . . . 496 Melee 759 | . . . . . . . . . . . 335 65 84 . 25 250 Knockbacks 29 | . . . . . . . . 10 . 5 . . . . 1 13 Impact . | . . . . . . . . . . . . . . . . . Kinetic 27 | . . . . . . . . 10 . 5 . . . . 1 11 Secondary 2 | . . . . . . . . . . . . . . . . 2 Self-Inflicted Damage 516 | . . . 145 . . . . . . . 80 . . . . 291 Shots 13 | . . . 5 . . . . . . . 1 . . . . 7 Rammed 2 | . . . 1 . . . . . . . 1 . . . . . Targets Rammed 2 | . . . 1 . . . . . . . 1 . . . . . Kicked . | . . . . . . . . . . . . . . . . . Crushed . | . . . . . . . . . . . . . . . . . Highest Temperature 272 | . . 254 228 30 213 270 195 232 . 255 272 137 111 . 168 240 Average Temperature 69 | . . 36 49 15 76 104 122 86 . 88 68 73 42 . 62 78 Received Heat Transfer 1978 | . 6 105 410 6 . 21 97 147 . 177 244 . . . 12 753 Effects 4 | . . . 3 . . . . . . . . . . . . 1 Energy Bleed 1 | . . . . . . . . . . . . . . . . 1 Interference 3 | . . . 3 . . . . . . . . . . . . . Siege Activations . | . . . . . . . . . . . . . . . . . Martial Activations . | . . . . . . . . . . . . . . . . . Shielding Activations . | . . . . . . . . . . . . . . . . . Robots Disrupted . | . . . . . . . . . . . . . . . . . Combat Hostiles . | . . . . . . . . . . . . . . . . . Robots Corrupted . | . . . . . . . . . . . . . . . . . Combat Hostiles . | . . . . . . . . . . . . . . . . . Parts Fried 3 | . . . . . . . . . . . 1 . . . 2 . Impact Corruptions 1 | . . . . . . . . . . . 1 . . . . . Robots Melted 3 | . . . . . . . . . . . . . . . 1 2 Combat Hostiles 3 | . . . . . . . . . . . . . . . 1 2 Parts Melted 15 | . . . . . . . . . . . 2 . . . 1 12 Heat Transferred 8450 | . . . . . 1887 222 137 . . . 1518 . . . 444 4242 Parts Sabotaged . | . . . . . . . . . . . . . . . . . Parts Stolen . | . . . . . . . . . . . . . . . . . Parts Stripped . | . . . . . . . . . . . . . . . . . Power Chain Reactions 1 | . . . . . . . . . . . 1 . . . . . Alert | -11 -10 -9 -8 -7 -7 -7 -7 -7 -7 -6 -6 -6 -6 -6 -5 -5 ------- Run | Yrd Mat Mat Mat Fac Was Fac Low Low Dat Pro Fac Low Low Zio Pro Fac Maximum Alert Level 5 | . . 1 3 1 . . . . . . 3 . . . . 5 Low Security (%) 47 | 100 100 76 5 . 100 100 . . . . 51 . . . . 21 Level 1 12 | . . 23 20 100 . . . . . . 4 . . . . 14 Level 2 19 | . . . 43 . . . . . . . 38 . . . . 11 Level 3 5 | . . . 31 . . . . . . . 5 . . . . . Level 4 4 | . . . . . . . . . . . . . . . . 17 Level 5 5 | . . . . . . . . . . . . . . . . 18 High Security 4 | . . . . . . . . . . . . . . . . 15 Max Security . | . . . . . . . . . . . . . . . . . Peak Influence 2880 | 5 17 242 746 349 97 41 . . . . 707 . . . . 2880 Initial 324 | . . . 85 324 97 . . . . . . . . . . 300 Average 467 | 1 1 102 529 321 16 7 . . . . 266 . . . . 1068 Influence Increases 7752 | 20 80 533 1184 75 . 215 50 150 . 205 1111 . 25 . 252 3852 Destroy 0b10 Robot/C 3820 | . . 320 720 20 . 100 40 120 . 60 560 . . . 140 1740 Destroy 0b10 Robot/NC 640 | 20 30 60 160 . . 5 . . . . 105 . 25 . 10 225 Destroy Leader 814 | . 2 82 188 10 . 22 10 30 . 10 136 . . . 40 284 Allied During Kill 76 | . . . . . . . . . . . . . . . 62 14 Successful Hack 261 | . 48 14 27 45 . 71 . . . . 52 . . . . 4 Disable Machine 645 | . . . 45 . . 15 . . . . 60 . . . . 525 Destroy Structure 881 | . . 12 29 . . 2 . . . . 138 . . . . 700 Advance Influence 300 | . . . . . . . . . . . . . . . . 300 Partial Spotted 45 | . . . . . . . . . . . 15 . . . . 30 Lose Combat Pursuer 270 | . . 45 15 . . . . . . 135 45 . . . . 30 Influence Decreases 4892 | 20 80 329 675 509 279 185 80 150 . 205 426 596 114 . 252 992 Entered New Map 973 | . . . 119 389 182 . 12 . . . . 254 17 . . . Time Decay 3353 | 20 80 319 526 120 97 165 68 140 . 155 340 342 97 . 232 652 Search Patrol Dispatched 100 | . . . . . . . . . . . . . . . . 100 Lost Part 436 | . . . 30 . . 20 . 10 . 50 86 . . . . 240 Lost Ally 30 | . . 10 . . . . . . . . . . . . 20 . Squads Dispatched 53 | . . 1 5 . . 3 . . . 1 14 . . . . 29 Investigation 4 | . . . 1 . . . . . . . 3 . . . . . Extermination 8 | . . . . . . 1 . . . . 3 . . . . 4 Reinforcement 15 | . . 1 3 . . 1 . . . . 6 . . . . 4 Assault 25 | . . . 1 . . . . . . 1 2 . . . . 21 Garrison 1 | . . . . . . 1 . . . . . . . . . . Intercept . | . . . . . . . . . . . . . . . . . Searches Triggered 1 | . . . . . . . . . . . . . . . . 1 Data Miner Redirects 6 | . . . . . . . . . . . 2 . . . . 4 Construction Impeded 6 | . . . 1 . . . . . . . 3 . . . . 2 Haulers Reinforced 2 | . . . . . . 1 . . . . 1 . . . . . Active Scanning Responses . | . . . . . . . . . . . . . . . . . Cargo Convoy Interrupts 1 | . . . . . . . . . . . . . . . . 1 Stealth | -11 -10 -9 -8 -7 -7 -7 -7 -7 -7 -6 -6 -6 -6 -6 -5 -5 --------- Run | Yrd Mat Mat Mat Fac Was Fac Low Low Dat Pro Fac Low Low Zio Pro Fac Distress Signals 20 | . 1 6 5 . . . . . . . 1 . . . . 7 Communications Jammed . | . . . . . . . . . . . . . . . . . Distress Signals . | . . . . . . . . . . . . . . . . . Times Spotted 291 | . 10 29 44 1 1 6 2 18 . 13 37 . . . 9 121 Peak Tracking Total 10 | . 5 4 5 1 1 2 1 6 . 9 5 . . . 2 10 Tactical Retreats 13 | . . 3 1 . . . . . . 4 3 . . . . 2 ECM-based Alert Blocks 2 | . . . . . . . . . . 2 . . . . . . Traps | -11 -10 -9 -8 -7 -7 -7 -7 -7 -7 -6 -6 -6 -6 -6 -5 -5 ------- Run | Yrd Mat Mat Mat Fac Was Fac Low Low Dat Pro Fac Low Low Zio Pro Fac Traps Triggered 7 | . . 1 1 1 . 3 . . . . . . . . . 1 Indirectly . | . . . . . . . . . . . . . . . . . Trap Hack Attempts . | . . . . . . . . . . . . . . . . . Triggered . | . . . . . . . . . . . . . . . . . Disarmed . | . . . . . . . . . . . . . . . . . Reprogrammed . | . . . . . . . . . . . . . . . . . Reused . | . . . . . . . . . . . . . . . . . Traps Extracted . | . . . . . . . . . . . . . . . . . Installed . | . . . . . . . . . . . . . . . . . Triggered . | . . . . . . . . . . . . . . . . . Machines | -11 -10 -9 -8 -7 -7 -7 -7 -7 -7 -6 -6 -6 -6 -6 -5 -5 ---------- Run | Yrd Mat Mat Mat Fac Was Fac Low Low Dat Pro Fac Low Low Zio Pro Fac Machines Disabled 43 | . . . 3 . . 1 . . . . 4 . . . . 35 Max in Single Turn 15 | . . . 2 . . 1 . . . . 1 . . . . 15 Garrison Access 2 | . . . 1 . . . . . . . 1 . . . . . Machines Repaired . | . . . . . . . . . . . . . . . . . Machines Dismantled . | . . . . . . . . . . . . . . . . . Machines Sabotaged . | . . . . . . . . . . . . . . . . . Overloaded Fab Kills . | . . . . . . . . . . . . . . . . . Hacking | -11 -10 -9 -8 -7 -7 -7 -7 -7 -7 -6 -6 -6 -6 -6 -5 -5 --------- Run | Yrd Mat Mat Mat Fac Was Fac Low Low Dat Pro Fac Low Low Zio Pro Fac Machines Accessed 64 | . 7 8 10 3 . 8 1 1 3 . 14 . 3 . . 6 Terminals 31 | . 7 6 7 2 . 5 . . . . 3 . 1 . . . Fabricators 5 | . . . . . . . . . . . 3 . . . . 2 Repair Stations 8 | . . 1 1 . . 1 . . . . 4 . . . . 1 Recycling Units 7 | . . . . 1 . 1 . . . . 3 . . . . 2 Scanalyzers 4 | . . 1 1 . . 1 . . . . . . . . . 1 Garrison Access 2 | . . . 1 . . . . . . . 1 . . . . . Total Hacks 174 | . 22 25 27 6 . 17 1 1 27 . 31 . 6 . . 11 Successful 110 | . 12 11 15 5 . 8 1 1 27 . 18 . 6 . . 6 Failed 63 | . 9 14 12 1 . 9 . . . . 13 . . . . 5 Catastrophic 8 | . . 3 1 1 . 1 . . . . 2 . . . . . Database Lockouts 1 | . 1 . . . . . . . . . . . . . . . Manual 64 | . 16 15 13 2 . 6 . . . . 9 . . . . 3 Terminals 82 | . 22 20 19 4 . 9 . . . . 7 . 1 . . . Fabricators 13 | . . . . . . . . . . . 10 . . . . 3 Repair Stations 20 | . . 2 5 . . 4 . . . . 6 . . . . 3 Recycling Units 13 | . . . . 2 . 3 . . . . 5 . . . . 3 Scanalyzers 8 | . . 3 2 . . 1 . . . . . . . . . 2 Garrison Access 4 | . . . 1 . . . . . . . 3 . . . . . Terminal Hacks 58 | . 8 3 6 2 . 2 1 1 27 . 2 . 6 . . . Record 11 | . . . . . . . . . 6 . . . 5 . . . Part Schematic 13 | . 1 . . . . 1 . . 11 . . . . . . . Robot Schematic 7 | . . . . . . . . . 7 . . . . . . . Robot Analysis 2 | . 1 . 1 . . . . . . . . . . . . . Prototype ID Bank 3 | . . . . . . . . . 3 . . . . . . . Open Door 3 | . . . . . . . 1 1 . . . . 1 . . . Level Access Points 1 | . 1 . . . . . . . . . . . . . . . Branch Access Points 3 | . 1 . . . . 1 . . . . 1 . . . . . Terminal Index 2 | . 1 . 1 . . . . . . . . . . . . . Repair Station Index 1 | . . . 1 . . . . . . . . . . . . . Scanalyzer Index 1 | . 1 . . . . . . . . . . . . . . . Locate Traps 3 | . 1 1 1 . . . . . . . . . . . . . Security Status 2 | . . 1 . 1 . . . . . . . . . . . . Hauler Manifests 2 | . . 1 1 . . . . . . . . . . . . . Registered Components 1 | . 1 . . . . . . . . . . . . . . . Zone Layout 3 | . . . 1 1 . . . . . . 1 . . . . . Fabricator Hacks 8 | . . . . . . . . . . . 6 . . . . 2 Network Status 2 | . . . . . . . . . . . 1 . . . . 1 Load Schematic 3 | . . . . . . . . . . . 3 . . . . . Build 3 | . . . . . . . . . . . 2 . . . . 1 Repair Station Hacks 11 | . . 1 4 . . 1 . . . . 3 . . . . 2 Scan Component 7 | . . 1 2 . . 1 . . . . 2 . . . . 1 Repair 4 | . . . 2 . . . . . . . 1 . . . . 1 Recycling Unit Hacks 6 | . . . . 1 . 1 . . . . 2 . . . . 2 Report Inventory 6 | . . . . 1 . 1 . . . . 2 . . . . 2 Scanalyzer 5 | . . 3 1 . . 1 . . . . . . . . . . Insert Component 1 | . . 1 . . . . . . . . . . . . . . Analyze 1 | . . 1 . . . . . . . . . . . . . . Retrieve Study 3 | . . 1 1 . . 1 . . . . . . . . . . Garrison Access Hacks 2 | . . . 1 . . . . . . . 1 . . . . . Seal Access 2 | . . . 1 . . . . . . . 1 . . . . . Unauthorized Hacks 20 | . 4 4 3 2 . 3 . . . . 4 . . . . . Terminals 15 | . 4 4 3 1 . 2 . . . . 1 . . . . . Assimilate 1 | . 1 . . . . . . . . . . . . . . . Botnet 12 | . 1 4 3 1 . 2 . . . . 1 . . . . . Operators 2 | . 2 . . . . . . . . . . . . . . . Fabricators 1 | . . . . . . . . . . . 1 . . . . . Recompile 1 | . . . . . . . . . . . 1 . . . . . Repair Stations 1 | . . . . . . . . . . . 1 . . . . . Patch 1 | . . . . . . . . . . . 1 . . . . . Recycling Units 3 | . . . . 1 . 1 . . . . 1 . . . . . Recyclers 3 | . . . . 1 . 1 . . . . 1 . . . . . Scanalyzers . | . . . . . . . . . . . . . . . . . Garrison Access . | . . . . . . . . . . . . . . . . . Data Cores Recovered . | . . . . . . . . . . . . . . . . . Used . | . . . . . . . . . . . . . . . . . Hacking Detections 43 | . 6 8 7 3 . 7 . . . . 8 . . . . 4 Full Trace Events 1 | . . . . . . . . . . . 1 . . . . . Feedback Events . | . . . . . . . . . . . . . . . . . Feedback Blocked . | . . . . . . . . . . . . . . . . . Robot Schematics Acquired 7 | . . . . . . . . . 7 . . . . . . . Robots Built . | . . . . . . . . . . . . . . . . . Authchips . | . . . . . . . . . . . . . . . . . Time . | . . . . . . . . . . . . . . . . . Total Robot Build Rating . | . . . . . . . . . . . . . . . . . Part Schematics Acquired 14 | . 1 1 . . . 1 . . 11 . . . . . . . Parts Built 3 | . . . . . . . . . . . 3 . . . . . Authchips 1 | . . . . . . . . . . . 1 . . . . . Time 237 | . . . . . . . . . . . 120 . . . . 117 Total Part Build Rating 11 | . . . . . . . . . . . 11 . . . . . Part Studies Acquired 3 | . . 1 1 . . 1 . . . . . . . . . . Parts Repaired 4 | . . . 2 . . . . . . . 1 . . . . 1 Time 156 | . . . 88 . . . . . . . 43 . . . . 25 Parts Recycled . | . . . . . . . . . . . . . . . . . Recycled Matter . | . . . . . . . . . . . . . . . . . Retrieved Matter . | . . . . . . . . . . . . . . . . . Retrieved Components . | . . . . . . . . . . . . . . . . . Parts Scanalyzed 1 | . . 1 . . . . . . . . . . . . . . Part Schematics Acquired 1 | . . 1 . . . . . . . . . . . . . . Parts Damaged . | . . . . . . . . . . . . . . . . . Bothacking | -11 -10 -9 -8 -7 -7 -7 -7 -7 -7 -6 -6 -6 -6 -6 -5 -5 ------------ Run | Yrd Mat Mat Mat Fac Was Fac Low Low Dat Pro Fac Low Low Zio Pro Fac Used RIF Installer . | . . . . . . . . . . . . . . . . . Robots Hacked . | . . . . . . . . . . . . . . . . . Non-combat . | . . . . . . . . . . . . . . . . . Combat . | . . . . . . . . . . . . . . . . . Robot Hacks Applied . | . . . . . . . . . . . . . . . . . Relay Couplers Released . | . . . . . . . . . . . . . . . . . Fabnet Peak Effective % . | . . . . . . . . . . . . . . . . . Robots Rewired . | . . . . . . . . . . . . . . . . . Allies Hacked . | . . . . . . . . . . . . . . . . . Hacks Repelled . | . . . . . . . . . . . . . . . . . Allies | -11 -10 -9 -8 -7 -7 -7 -7 -7 -7 -6 -6 -6 -6 -6 -5 -5 -------- Run | Yrd Mat Mat Mat Fac Was Fac Low Low Dat Pro Fac Low Low Zio Pro Fac Total Allies 5 | . 1 . . . . . . . . . . . . 4 . . Largest Group 4 | . 1 1 . . . . . . . . . . . 4 4 2 Highest-Rated Group 154 | . 10 10 . . . . . . . . . . . 154 154 69 Highest-Rated Ally 40 | . 10 10 . . . . . . . . . . . 40 40 35 Total Orders 2 | . . . . . . . . . . . . . . 1 . 1 RETURN 2 | . . . . . . . . . . . . . . 1 . 1 Ally Attacks 34 | . . . . . . . . . . . . . . . 30 4 Total Damage 1485 | . . . . . . . . . . . . . . . 1215 270 Kills 8 | . . . . . . . . . . . . . . . 7 1 Allies Corrupted . | . . . . . . . . . . . . . . . . . Allies Melted . | . . . . . . . . . . . . . . . . . Intel | -11 -10 -9 -8 -7 -7 -7 -7 -7 -7 -6 -6 -6 -6 -6 -5 -5 ------- Run | Yrd Mat Mat Mat Fac Was Fac Low Low Dat Pro Fac Low Low Zio Pro Fac Active Infowar (turns) 13332 | 3 544 828 249 213 295 336 540 562 113 285 2109 766 1043 2578 1125 1743 Sensors 10875 | . . . . . . 60 517 562 113 259 2109 766 1043 2578 1125 1743 Seismic 2408 | 3 544 828 249 213 295 276 . . . . . . . . . . Jamming 87 | . . . . . . . . . . . 87 . . . . . ECM 49 | . . . . . . . 23 . . 26 . . . . . . Robot Analysis Total 2 | . 1 . 1 . . . . . . . . . . . . . Derelict Logs Recovered 7 | . . . . . . . 2 1 . 2 . . 1 . 1 . Drone Launches 2 | . . . . . . . . . . . . . . 1 . 1 Drone Recoveries 2 | . . . . . . . . . . . . . . 1 . 1 Exploration | -11 -10 -9 -8 -7 -7 -7 -7 -7 -7 -6 -6 -6 -6 -6 -5 -5 ------------- Run | Yrd Mat Mat Mat Fac Was Fac Low Low Dat Pro Fac Low Low Zio Pro Fac Turns Passed 18126 | 139 544 828 1461 240 630 777 819 1022 113 478 2548 766 1043 2585 1272 2861 Spaces Moved 10094 | 90 419 436 724 192 426 585 528 595 97 344 1458 417 530 1378 646 1229 Core 49 | 1 . . . . . . . . . . . . . . . 48 Treads 1 | . . . . . . . . . . . . . . . 1 . Legs . | . . . . . . . . . . . . . . . . . Wheels 10044 | 89 419 436 724 192 426 585 528 595 97 344 1458 417 530 1378 645 1181 Hover . | . . . . . . . . . . . . . . . . . Flight . | . . . . . . . . . . . . . . . . . Fastest Speed 50 | 50 100 130 105 110 110 110 110 125 110 110 110 175 175 175 175 50 Average Speed 145 | 99 108 132 118 110 110 117 112 143 110 117 140 175 187 183 177 154 Slowest Speed 323 | 100 130 145 135 110 110 125 140 230 125 140 185 240 190 190 323 320 Overloaded Moves . | . . . . . . . . . . . . . . . . . Propulsion Burnouts . | . . . . . . . . . . . . . . . . . Robots Hopped . | . . . . . . . . . . . . . . . . . Potential Cave-ins 4 | . . . . . . . . . . . . . . . . 4 Cave-ins Triggered . | . . . . . . . . . . . . . . . . . Exploration Rate (%) 52 | 4 73 49 56 7 94 17 67 67 69 50 28 56 65 88 69 34 Regions Visited 16 Branch Regions 8 Pre-discovered Areas 2 | . . . . . . . . . 1 . . . . 1 . . Known Exits Taken 7 | . 1 . . . . 1 . . . . 1 1 1 1 1 . Unknown Exits Taken 7 | 1 . 1 1 . . . 1 1 1 1 . . . . . . Scrap Searched 17 | . . . . . . . 5 . . 2 . 4 1 2 3 . Spaces Dug 108 | . . . 14 . . . . 15 . . 26 1 1 1 8 42 Terrain Destroyed 756 | . . 10 36 . . 1 . 26 . . 186 1 1 1 11 483 Melee 40 | . . . . . . . . . . . 12 1 1 1 8 17 Projectile 58 | . . . . . . 1 . . . . 3 . . . 3 51 AOE 658 | . . 10 36 . . . . 26 . . 171 . . . . 415 Terrain Rammed . | . . . . . . . . . . . . . . . . . Walls Destroyed . | . . . . . . . . . . . . . . . . . Machines Disabled . | . . . . . . . . . . . . . . . . . Actions | -11 -10 -9 -8 -7 -7 -7 -7 -7 -7 -6 -6 -6 -6 -6 -5 -5 --------- Run | Yrd Mat Mat Mat Fac Was Fac Low Low Dat Pro Fac Low Low Zio Pro Fac Total 12397 | 115 470 558 1103 221 518 634 715 688 102 402 1796 438 566 1433 737 1901 Wait 1043 | . 7 6 215 11 26 17 142 36 . 43 114 4 4 32 53 333 Move 10079 | 89 418 435 723 192 425 584 527 594 96 343 1457 416 529 1377 645 1229 Hop . | . . . . . . . . . . . . . . . . . Pick Up 143 | 8 20 12 15 7 4 3 3 7 . 1 32 2 3 4 . 22 Fast Attach 116 | 7 . 9 15 . 10 2 7 1 3 3 13 3 9 7 5 22 Attach 55 | . . 2 3 2 . 2 2 5 . 1 18 . . . . 20 Detach 23 | . . 1 4 . . . 1 . . . 5 . . . 1 11 Swap 169 | 1 1 8 12 3 6 5 9 13 . 3 33 1 . 2 13 59 Drop 176 | . 4 20 23 5 14 4 7 2 3 . 31 4 10 10 6 33 Fire 470 | 10 20 65 92 1 31 17 16 30 . 8 52 . 1 . 5 122 Melee 118 | . . . . . . . . . . . 40 8 10 1 9 50 Ram 2 | . . . 1 . . . . . . . 1 . . . . . Kick . | . . . . . . . . . . . . . . . . . Crush . | . . . . . . . . . . . . . . . . . Escape Stasis . | . . . . . . . . . . . . . . . . . Rewire 3 | . . . . . 2 . 1 . . . . . . . . . Trap . | . . . . . . . . . . . . . . . . . Miscellaneous . | . . . . . . . . . . . . . . . . . Route ------- -11/Scrapyard -10/Materials (discovered 5 exits: *Mat x3 / *Min x2) -9/Materials (discovered 2 exits: *Mat / [*Min]) -8/Materials (discovered 2 exits: *Fac x2) -7/Factory -7/Waste -7/Factory (discovered 4 exits: Sto x2 / *Low x2) -7/Lower Caves -7/Lower Caves -7/Data Miner -6/Proximity Caves -6/Factory (discovered 7 exits: *Fac x3 / *Low x2 / Ext x2) -6/Lower Caves -6/Lower Caves (discovered 2 exits: *Fac / *Zio) -6/Zion -5/Proximity Caves -5/Factory History --------- Turn | Location | Event 9 | -11/Scrapyard | Discovered new exit (range 15) 140 | -11/Scrapyard | Entered Materials 141 | -10/Materials | Met a group of wandering Federalists 300 | -10/Materials | Discovered new exit (range 6) 310 | -10/Materials | Build established: Mutant 333 | -10/Materials | Identified exit to Mines 333 | -10/Materials | Central database locked down 348 | -10/Materials | Discovered new exit (range 11) 552 | -10/Materials | Identified exit to Materials 684 | -10/Materials | Entered another Materials area 684 | -9/Materials | Accompanied by 1 ally 684 | -9/Materials | Evolved 2 slots: Utility x1, Weapon x1 993 | -9/Materials | Build established: Gunner 1007 | -9/Materials | Discovered new exit (range 16) 1477 | -9/Materials | Discovered new exit (range 3) 1512 | -9/Materials | Entered another Materials area 1512 | -8/Materials | Evolved 2 slots: Propulsion x1, Weapon x1 2059 | -8/Materials | Build established: Scavenger-Gunner 2408 | -8/Materials | Build established: Gunner 2550 | -8/Materials | Discovered new exit (range 16) 2712 | -8/Materials | First assault squad dispatched 2775 | -8/Materials | Discovered new exit (range 12) 2888 | -8/Materials | Repaired Flak Gun 2934 | -8/Materials | Repaired Imp. Shield Generator 2973 | -8/Materials | Entered Factory 2973 | -7/Factory | Evolved 2 slots: Utility x2 3213 | -7/Factory | Sucked down chute 3213 | -7/Factory | Entered Waste 3213 | -7/Waste | The area was eerily silent 3643 | -7/Waste | A Compactor rumbled back to life 3644 | -7/Waste | Spotted C-40 Crusher 3674 | -7/Waste | Discovered new exit (range 12) 3730 | -7/Waste | Destroyed C-40 Crusher 3843 | -7/Waste | Entered Factory 3865 | -7/Factory | Build established: Derelict-Gunner 3992 | -7/Factory | Garrison activated, responded to threat 4478 | -7/Factory | Identified exit to Storage 4478 | -7/Factory | Identified exit to Lower Caves 4620 | -7/Factory | Entered Lower Caves 4631 | -7/Lower Caves | Spotted B-75 Beast 4721 | -7/Lower Caves | Destroyed B-75 Beast 4792 | -7/Lower Caves | Learned 8 Factory zone layouts 5069 | -7/Lower Caves | Attracted the attention of an 0b10 checkpoint 5233 | -7/Lower Caves | Learned location of 1 exit from Factory 5279 | -7/Lower Caves | Discovered new exit (range 6) 5394 | -7/Lower Caves | Build established: Gunner 5439 | -7/Lower Caves | Entered another Lower Caves area 5484 | -7/Lower Caves | Lost 3 parts (1p2u) 5804 | -7/Lower Caves | Attacked by a faux Warlord 5839 | -7/Lower Caves | Lost 3 parts (2n1w) 5916 | -7/Lower Caves | Build established: Tank 6445 | -7/Lower Caves | Discovered new exit (range 8) 6461 | -7/Lower Caves | Entered Data Miner 6463 | -7/Data Miner | Discovered new exit (range 6) 6484 | -7/Data Miner | Met Data Miner 6505 | -7/Data Miner | Learned location of Section 7 (-2) 6505 | -7/Data Miner | Acquired the access code to Warlord's prototype stash 6526 | -7/Data Miner | Received God Mode back door access code from Data Miner 6574 | -7/Data Miner | Entered Proximity Caves 6591 | -6/Proximity Caves | Attracted the attention of an 0b10 outpost 6697 | -6/Proximity Caves | Lost 3 parts (2u1w) 6913 | -6/Proximity Caves | Learned Factory emergency access door positions 6946 | -6/Proximity Caves | Build established: Mutant 6969 | -6/Proximity Caves | Learned Factory trap positions 7020 | -6/Proximity Caves | Discovered new exit (range 13) 7052 | -6/Proximity Caves | Entered Factory 7052 | -6/Factory | Evolved 2 slots: Utility x2 7053 | -6/Factory | Identified exit to Lower Caves 7054 | -6/Factory | Identified exit to Extension 7055 | -6/Factory | Identified exit to Factory 7056 | -6/Factory | Loaded intel: 99 trap records 7161 | -6/Factory | Repaired Broken Micro-nuke Launcher? 7496 | -6/Factory | Fabricated Cargo Storage Unit (x1) 7548 | -6/Factory | Lost 3 parts (1n1u1w) 7861 | -6/Factory | Build established: Hauler-Mutant 8482 | -6/Factory | Discovered exit to Factory (range 13) 8802 | -6/Factory | First assault squad dispatched 8820 | -6/Factory | Incoming assault squad redirected 8937 | -6/Factory | Fabricated Launcher Loader (x2) 9177 | -6/Factory | Build established: Hauler-Tank 9338 | -6/Factory | Discovered exit to Extension (range 17) 9585 | -6/Factory | Incoming investigation squad redirected 9600 | -6/Factory | Entered Lower Caves 9628 | -6/Lower Caves | Lost 3 parts (1n2w) 9765 | -6/Lower Caves | Encountered a Warlord checkpoint 9887 | -6/Lower Caves | Build established: Hauler-Mutant 10354 | -6/Lower Caves | Discovered new exit (range 8) 10364 | -6/Lower Caves | Identified exit to Lower Caves 10366 | -6/Lower Caves | Entered another Lower Caves area 10426 | -6/Lower Caves | Discovered exit to Factory (range 10) 10753 | -6/Lower Caves | Learned Research security intel 10753 | -6/Lower Caves | Learned Factory garrison access intel 10815 | -6/Lower Caves | Build established: Hauler-Skirmisher 11029 | -6/Lower Caves | Identified exit to Zion 11409 | -6/Lower Caves | Entered Zion 11499 | -6/Zion | System corruption cleaned by Quarantine Array 11593 | -6/Zion | Found CR-A16's Pointy Stick 11628 | -6/Zion | Given the Hacking Drone Bay 11632 | -6/Zion | Found Prototype Device 11717 | -6/Zion | Identified Hacking Drone Bay 11870 | -6/Zion | Found Prototype Device 11870 | -6/Zion | Identified Mobile Refinery Mk. CCLXVII 12934 | -6/Zion | Discovered new exit (range 15) 12961 | -6/Zion | Identified exit to Proximity Caves 13366 | -6/Zion | Met Imprinter 13399 | -6/Zion | Imprinted 13401 | -6/Zion | Declared Zion's savior 13994 | -6/Zion | Entered Proximity Caves 13994 | -5/Proximity Caves | Accompanied by 4 allies 13997 | -5/Proximity Caves | Spotter reported a threat 14000 | -5/Proximity Caves | Spotter reported a threat 14430 | -5/Proximity Caves | Spotted B-75 Beast 14445 | -5/Proximity Caves | Destroyed B-75 Beast 15248 | -5/Proximity Caves | Discovered exit to Factory (range 6) 15266 | -5/Proximity Caves | Entered Factory 15266 | -5/Factory | Accompanied by 2 allies 15266 | -5/Factory | Evolved 2 slots: Utility x2 15267 | -5/Factory | Loaded intel: 4 garrison access locations 15566 | -5/Factory | Search patrols dispatched 16309 | -5/Factory | Cargo convoy interrupted 16466 | -5/Factory | First assault squad dispatched 16482 | -5/Factory | Incoming assault squad redirected 16554 | -5/Factory | Terminal network hard line cut 16618 | -5/Factory | Build established: Hauler-Tank 16787 | -5/Factory | Incoming assault squad redirected 16793 | -5/Factory | Incoming assault squad redirected 16992 | -5/Factory | Found Prototype Processor 16992 | -5/Factory | Identified Exp. Targeting Computer 16995 | -5/Factory | Found Exp. Targeting Computer 17058 | -5/Factory | Build established: Hauler-Gunner 17391 | -5/Factory | Incoming assault squad redirected 17469 | -5/Factory | Repaired Fission Core 17674 | -5/Factory | High security lockdown imminent 17703 | -5/Factory | Destroyed 7 combat bots 17754 | -5/Factory | High security lockdown engaged 17780 | -5/Factory | Found Launcher Loader 18048 | -5/Factory | System corruption reached 10% 18055 | -5/Factory | Core integrity fell below 50% 18060 | -5/Factory | Destroyed 19 combat bots 18093 | -5/Factory | Lost 14 parts (2p3n6u3w) 18100 | -5/Factory | Released all parts (3) 18102 | -5/Factory | Core integrity fell below 20% 18127 | -5/Factory | Destroyed by H-66 Slayer with Gauss Rifle Last Messages --------------- 18099_ Tiamat Missile Launcher destroyed. 18100_ Released Cargo Storage Unit. 18100_ Released Exp. Targeting Computer. 18100_ Released Com. Wheel+. 18100_ Dropped Micro-nuke Launcher. 18100_ Dropped Launcher Loader. 18101_ Acquired Lrn. Missile Launcher. 18101_ Penetrated by Slug. 18101_ H-66 Slayer destroyed. 18101_ Penetrated by Slug. 18103_ /WNH/2B1DSDFV3CLLVK1C,NH,=CJ: 18103_ The unstable cave ceiling collapses. 18103_ Acquired Micro-nuke Launcher. 18105_ Acquired 0b10 Decoder Chip [Looter]. 18105_ Penetrated by Slug. 18108_ Slug penetrates Reinforced Barrier. 18109_ ALERT: Suspicious intruders detected, dispatching Cutter reinforcements to area. 18111_ Penetrated by Slug. 18118_ System corrupted: Heat flow error (+101). Map ----- +----------------------------------------------------+ | | | | | | | | | | | | | | | | | | | | | #############??????????####???#####??????????????? | | * #????????? ?? ??????????????? | | """ """ #?????????""""""""" #?????????????? | | """ """ #####???? ? #?????????????? | | ! """ """ + #???? """"""""" #?????????????? | | ! # #??? ? ! #?????????????? | | ######+###### #### """"""""" #?????????????? | | + ??????????????? | | ###### # """"""""" ??????????????? | | ?????# # ??? ???????????????? | | ?????# +? ? ???????????????? | | ?????# ########+####?######+####+####????????????? | | ###### #????# ! #????# +????????????? | | #????# #????# ##### #????????????? | | ######+##???# """ #????# #???? #????????????? | | #???# """ ######@ #?????#????????????? | | #???# """ + #??????????????????? | | #???# ###### #??????????????????? | | " """ #???########????# #??????????????????? | | " """ ? #???????????????# #??????????????????? | | " """ #???????????????# #??????????????????? | | #???????????????# #??????????????????? | | " #???????????????+ +????H?????????????? | | " " " #???????????????# #??????????????????? | | " "Y" #???????????????# #??????????????????? | | ! """ ????????????????# #??????????????????? | | #???????????????# #??????????????????? | | #########???????????????# #??????????????????? | | ????????????????# #??????????????????? | | " " " ????????????????# #??????????????????? | | " " " ????????????????# #???????#??????????? | | " " " #?????########### #???????# ?????????? | | " " " #?????# ## #???????# ?????????? | | " " " #?????# ! ## #???????# ?????????? | | " " " #?????# ## #???????# ?????????? | | " " " #?????# ! ## ######### #????????? | | " " " #??#### ## T# ## ##"#####????? | | " " " #### ## ## # #????? | | # # ## ## #????? | | ! # #????? | +----------------------------------------------------+ Best States ------------- Heat Dissipation 78 Energy Generation 21 Energy Capacity 515 Matter Stores 300 Matter Capacity 300 Sight Range 16 Robot Scan Range 16 Terrain Scan Density 10 ECM Strength 2 Jamming Range 12 Base Temperature (-) 150 Armor Coverage 450 Resistance: TH 15 Evasion (%) 50 Targeting Accuracy 24 Recoil Reduction 1 Offensive Hacking 20 Authchip Count 2 Item Schematics ----------------- Cargo Storage Unit | -10/Materials | Hacked Arm. Wheel | -9/Materials | Scanalyzed Launcher Loader | -7/Factory | Hacked Combat Drone Bay | -7/Data Miner | Free Lgt. Regenerative Plating | -7/Data Miner | Free Cld. Aerolev Unit | -7/Data Miner | Free Gravity Neutralizer | -7/Data Miner | Free Imp. Lightning Gun | -7/Data Miner | Free Arm. Medium Treads | -7/Data Miner | Free Imp. Component Analysis Suite | -7/Data Miner | Free Mass Driver | -7/Data Miner | Free Imp. Weapon Cycler | -7/Data Miner | Free Adv. Focal Shield | -7/Data Miner | Free Imp. Force Field | -7/Data Miner | Free Robot Schematics ------------------ Y-54 Guardian | -7/Data Miner | Free H-66 Slayer | -7/Data Miner | Free H-55 Commando | -7/Data Miner | Free A-15 Conveyor | -7/Data Miner | Free R-10 Processor | -7/Data Miner | Free Y-64 Sentinel | -7/Data Miner | Free B-60 Warrior | -7/Data Miner | Free Fabricated ------------ Cargo Storage Unit | x1 | -6/Factory Launcher Loader | x2 | -6/Factory | Authchip Repaired ---------- Flak Gun | 51% | -8/Materials Imp. Shield Generator | 72% | -8/Materials Micro-nuke Launcher | 18% | -6/Factory | Broken Fission Core | 15% | -5/Factory Studied --------- Com. Wheel | -9/Materials | Hacked Arm. Wheel | -8/Materials | Hacked Nuclear Core | -7/Factory | Hacked Alien Tech Used ----------------- None Achievements -------------- DIY Cooler Look Less Dangerous Next Time Official Business Suspicious Challenges ------------ None Game ------ Seed AlphaTargetingBroadsword Manual? 0 Play Time 02:18:12 Cumulative 261.1 hours Start 2025.10.27 @ 18:21:01 End 2025.10.28 @ 12:36:47 Sessions 9 Manual Loads 0 Difficulty Rogue Special Mode None Game No. 288 Rogue 288 Adventurer 0 Explorer 0 Win Type - Total 3 Types 3/0/0/0/0/0/0/0/0/0 Lore% 75 Gallery% 70 Achievement% 47 Wizard Run 0 Options --------- Layout 2 ASCII 0 Keyboard 1 Movement Vi Keybinds 0 Fullscreen 2 Font 24/Terminus Map View 50x44 Zoom Use 0% Tactical HUD 1 Map Filters NONE Filters NONE Steam X RUN: fbaa44c3-4895-4bca-9b3e-a606e7a75873